Cogmind - Beta 13 @@@ ROGUE MODE // 2024.04.10 @ 21:45:22 Player: JackZewap Result: Self-destructed Performance ------------- Evolutions (2) 1000 Regions Visited (3) 600 Robots Destroyed (49) 245 Value Destroyed (1221) 1221 Prototype IDs (0) 0 Alien Tech Used (0) 0 Bonus (-2) -2 TOTAL SCORE: 3064 Bonus ------- Friendly Fire -2 Cogmind --------- Core Integrity 535/550 Matter 0/300 Energy 99/100 System Corruption 0% Temperature Cool (0) Movement Rolling (110) Location -8/Materials Parts ------- > --- POWER (1) -------- (None) > --- PROPULSION (2) --- Subdweller Monowheel > --- UTILITY (4) ------ Improved Sensor Array Hacking Suite System Shield > --- WEAPON (4) ------- Battle Rifle Subdweller Machine Gun High-powered Shotgun Dirty Datajack > --- INVENTORY (5) ---- Light Treads Flight Unit Cooling System Medium Armor Plating Mining Claw Peak State ------------ > --- POWER ------------ (None) > --- PROPULSION ------- Subdweller Monowheel Subdweller Monowheel > --- UTILITY ---------- Large Storage Unit Medium Armor Plating Makeshift Light Armor Plating Hacking Suite > --- WEAPON ----------- Battle Rifle Subdweller Machine Gun Subdweller Machine Gun Dirty Datajack > --- INVENTORY -------- Light Treads Light Treads Flight Unit Flight Unit Cooling System Medium Armor Plating Medium Armor Plating Medium Armor Plating Improved Light Cannon Mining Claw [Rating: 27] Favorites ----------- Power Light Ion Engine Engine Light Ion Engine Propulsion Light Treads Treads Light Treads Wheel Subdweller Monowheel Flight Unit Flight Unit Utility Large Storage Unit Device Improved Sensor Array Storage Large Storage Unit Processor Targeting Computer Hackware Hacking Suite Protection Makeshift Light Armor Plating Weapon Improved Light Cannon Energy Gun Small Laser Ballistic Gun Light Assault Rifle Ballistic Cannon Improved Light Cannon Slashing Weapon Mining Claw Special Melee Weapon Dirty Datajack Build | -11 -10 -10 -8 ------- Run | Yrd Mat Sub Mat Slots Evolved 4 | . . . 4 Power . | . . . . Propulsion . | . . . . Utility 2 | . . . 2 Weapon 2 | . . . 2 Parts Attached 61 | 6 23 21 11 Power 4 | 1 2 1 . Engine 4 | 1 2 1 . Core . | . . . . Reactor . | . . . . Propulsion 17 | 2 5 10 . Treads 5 | 2 3 . . Leg . | . . . . Wheel 10 | . . 10 . Hover . | . . . . Flight 2 | . 2 . . Utility 11 | 1 4 1 5 Device 1 | . . . 1 Storage 3 | 1 2 . . Processor 3 | . 2 . 1 Hackware 2 | . . . 2 Protection 2 | . . 1 1 Artifact . | . . . . Weapon 29 | 2 12 9 6 Energy Gun 2 | 1 1 . . Energy Cannon . | . . . . Ballistic Gun 11 | 1 2 3 5 Ballistic Cannon 14 | . 8 6 . Launcher . | . . . . Special Weapon . | . . . . Impact Weapon . | . . . . Slashing Weapon 1 | . 1 . . Piercing Weapon . | . . . . Special Melee Weapon 1 | . . . 1 Unidentified Prototypes . | . . . . Parts Lost 10 | . 1 8 1 Power 1 | . 1 . . Propulsion 5 | . . 4 1 Utility . | . . . . Weapon 4 | . . 4 . Highest Loss Streak 3 | . 1 3 1 To Critical Strikes . | . . . . Average Slot Usage (%) 86 | . 92 82 81 Engine 4 | . 10 . . Treads 17 | . 26 10 . Wheel 7 | . . 14 12 Storage 13 | . 12 14 6 Processor 9 | . 14 6 4 Protection 4 | . . 7 7 Ballistic Gun 4 | . 3 2 24 Ballistic Cannon 22 | . 21 25 1 Naked Turns . | . . . . Heaviest Build 45 | 10 31 36 45 Greatest Support 40 | 40 40 40 40 Greatest Overweight (x) 9 | 2 6 9 2 Average Overweight (x) . | . . . . Largest Inventory Capacity 15 | 8 15 15 15 Average Capacity 14 | 7 14 15 12 Most Carried 15 | . 15 15 14 Average Carried 12 | . 11 14 9 Final Capacity 15 | 8 15 15 5 Final Carried 15 | . 15 14 5 Class Distribution -------------------- 95% | Mutant Dominant Class ---------------- Mutant | -10/Materials Mutant | -10/Subcaves Tank | -8/Materials Resources | -11 -10 -10 -8 ----------- Run | Yrd Mat Sub Mat Matter Collected 1836 | 260 629 947 . Remotely . | . . . . Salvage Created 953 | . 519 349 85 Parts 81 | . 47 31 3 Haulers Intercepted 2 | . 2 . . Recyclers Shooed . | . . . . Parts Field Recycled . | . . . . Retrieved Matter . | . . . . Parts Self-Destructed 11 | . . 11 . Prevented . | . . . . Kills | -11 -10 -10 -8 ------- Run | Yrd Mat Sub Mat Combat Hostiles Destroyed 38 | . 19 18 1 Guns 7 | . 4 2 1 Cannons 31 | . 15 16 . Classes Destroyed 11 | . 8 3 . Worker 1 | . 1 . . Builder 1 | . 1 . . Hauler 2 | . 2 . . Recycler 1 | . 1 . . Operator 2 | . 2 . . Watcher 4 | . 3 . 1 Swarmer 13 | . 9 4 . Grunt 10 | . 10 . . Sentry 2 | . . 1 1 Artisan 1 | . . 1 . Subdweller 13 | . . 13 . Best Kill Streak 5 | . 5 3 2 Combat Bots Only 4 | . 4 3 1 Max Kills in Single Turn 2 | . 2 1 1 Gunslinging . | . . . . Exploded . | . . . . Melee . | . . . . Uniques/NPCs Destroyed . | . . . . Combat | -11 -10 -10 -8 -------- Run | Yrd Mat Sub Mat Hostile Shots Fired 195 | . 80 104 11 Missed 66 | . 28 36 2 Damage Taken 1980 | . 503 1330 147 Core 261 | . 75 171 15 Absorbed by Shields . | . . . . Core Remaining (%) 50 | 100 . 1 . Volleys Fired 169 | . 72 94 3 Largest 3 | . 2 2 3 Hottest 85 | . 78 78 85 Shots Fired 337 | . 140 188 9 Gun 69 | . 28 32 9 Cannon 268 | . 112 156 . Launcher . | . . . . Special . | . . . . Kinetic 337 | . 140 188 9 Thermal . | . . . . Explosive . | . . . . Electromagnetic . | . . . . Robot Hit Streak 14 | . 14 12 3 Robot Miss Streak 5 | . 3 5 1 Penetration Max . | . . . . Secondary Targets . | . . . . Shots Hit Robots 224 | . 89 118 17 Core Hits 73 | . 32 34 7 Critical Kills . | . . . . Critical Parts Destroyed . | . . . . Critical Strikes 14 | . 3 11 . Blast 14 | . 3 11 . Melee Attacks 16 | . 3 . 13 Impact . | . . . . Slashing 3 | . 3 . . Piercing 13 | . . . 13 Sneak Attacks 4 | . . . 4 Combat Hostiles . | . . . . Follow-up Attacks . | . . . . Damage Inflicted 4072 | . 1683 2279 110 Guns 463 | . 172 218 73 Cannons 3568 | . 1507 2061 . Explosions . | . . . . Melee 37 | . . . 37 Ramming 4 | . 4 . . Kinetic 4031 | . 1679 2279 73 Thermal . | . . . . Explosive . | . . . . Electromagnetic . | . . . . Impact . | . . . . Slashing . | . . . . Piercing 37 | . . . 37 Highest Corruption 2 | . 2 2 . Average Corruption 1 | . 1 2 . Corruption Purged . | . . . . Corruption Blocked . | . . . . Effects 53 | . 17 36 . Message Errors 18 | . 6 12 . Matter Fused 11 | . 4 7 . Heat Flow Errors 7 | . 3 4 . Energy Discharges 5 | . 1 4 . Data Loss (minor) 5 | . 1 4 . Data Loss (major) 4 | . 2 2 . Misfires 3 | . . 3 . Overload Shots . | . . . . Overflow Damage 37 | . 21 16 . Projectiles 37 | . 21 16 . Explosions . | . . . . Melee . | . . . . Knockbacks 34 | . 19 15 . Impact . | . . . . Kinetic 33 | . 18 15 . Secondary 1 | . 1 . . Self-Inflicted Damage 2 | . 2 . . Shots . | . . . . Rammed 1 | . 1 . . Targets Rammed 1 | . 1 . . Kicked . | . . . . Crushed . | . . . . Highest Temperature 222 | . 222 210 40 Average Temperature 42 | . 39 91 18 Received Heat Transfer 291 | . 150 87 54 Siege Activations . | . . . . Robots Corrupted . | . . . . Combat Hostiles . | . . . . Parts Fried . | . . . . Impact Corruptions . | . . . . Robots Melted . | . . . . Combat Hostiles . | . . . . Parts Melted . | . . . . Heat Transferred . | . . . . Parts Sabotaged . | . . . . Parts Stolen . | . . . . Parts Stripped . | . . . . Power Chain Reactions . | . . . . Alert | -11 -10 -10 -8 ------- Run | Yrd Mat Sub Mat Peak Influence 281 | . 281 . 33 Initial . | . . . . Average 64 | . 71 . 21 Maximum Alert Level 1 | . 1 . . Low Security (%) 90 | 100 89 . 100 Level 1 9 | . 10 . . Level 2 . | . . . . Level 3 . | . . . . Level 4 . | . . . . Level 5 . | . . . . High Security . | . . . . Max Security . | . . . . Squads Dispatched 7 | . 5 . 2 Investigation 5 | . 4 . 1 Extermination . | . . . . Reinforcement 2 | . 1 . 1 Assault . | . . . . Garrison . | . . . . Intercept . | . . . . Searches Triggered . | . . . . Construction Impeded . | . . . . Haulers Reinforced . | . . . . Active Scanning Responses . | . . . . Cargo Convoy Interrupts . | . . . . Stealth | -11 -10 -10 -8 --------- Run | Yrd Mat Sub Mat Distress Signals 4 | . 3 . 1 Communications Jammed . | . . . . Distress Signals . | . . . . Times Spotted 61 | . 31 20 10 Peak Tracking Total 6 | . 6 3 2 Tactical Retreats 3 | . 2 1 . Traps | -11 -10 -10 -8 ------- Run | Yrd Mat Sub Mat Traps Triggered 3 | . 3 . . Indirectly . | . . . . Trap Hack Attempts . | . . . . Triggered . | . . . . Disarmed 1 | . 1 . . Reprogrammed . | . . . . Reused . | . . . . Traps Extracted . | . . . . Installed . | . . . . Triggered . | . . . . Machines | -11 -10 -10 -8 ---------- Run | Yrd Mat Sub Mat Machines Disabled 2 | . 2 . . Max in Single Turn 1 | . 1 . . Machines Repaired . | . . . . Machines Dismantled . | . . . . Machines Sabotaged . | . . . . Overloaded Fab Kills . | . . . . Hacking | -11 -10 -10 -8 --------- Run | Yrd Mat Sub Mat Machines Accessed 11 | . 9 1 1 Terminals 8 | . 7 . 1 Fabricators . | . . . . Repair Stations . | . . . . Recycling Units 2 | . 2 . . Scanalyzers . | . . . . Garrison Access . | . . . . Total Hacks 40 | . 34 2 4 Successful 24 | . 20 2 2 Failed 15 | . 13 . 2 Catastrophic . | . . . . Database Lockouts 1 | . 1 . . Manual 35 | . 32 2 1 Terminals 27 | . 23 . 4 Fabricators . | . . . . Repair Stations . | . . . . Recycling Units 11 | . 11 . . Scanalyzers . | . . . . Garrison Access . | . . . . Terminal Hacks 9 | . 6 2 1 Record 2 | . . 2 . Robot Analysis 2 | . 2 . . Alert Level 1 | . 1 . . Unreport Threat 1 | . 1 . . Locate Traps 2 | . 1 . 1 Disarm Traps 1 | . 1 . . Fabricator Hacks . | . . . . Repair Station Hacks . | . . . . Recycling Unit Hacks 4 | . 4 . . Report Inventory 3 | . 3 . . Retrieve Components 1 | . 1 . . Scanalyzer . | . . . . Garrison Access Hacks . | . . . . Unauthorized Hacks 11 | . 10 . 1 Terminals 8 | . 7 . 1 Track 1 | . 1 . . Botnet 7 | . 6 . 1 Fabricators . | . . . . Repair Stations . | . . . . Recycling Units 3 | . 3 . . Reject 2 | . 2 . . Mask 1 | . 1 . . Scanalyzers . | . . . . Garrison Access . | . . . . Data Cores Recovered 1 | . 1 . . Used . | . . . . Hacking Detections 10 | . 9 . 1 Full Trace Events 8 | . 7 . 1 Feedback Events . | . . . . Feedback Blocked . | . . . . Robot Schematics Acquired . | . . . . Robots Built . | . . . . Authchips . | . . . . Time . | . . . . Total Robot Build Rating . | . . . . Part Schematics Acquired . | . . . . Parts Built . | . . . . Authchips . | . . . . Time . | . . . . Total Part Build Rating . | . . . . Parts Repaired . | . . . . Time . | . . . . Parts Recycled . | . . . . Recycled Matter . | . . . . Retrieved Matter . | . . . . Retrieved Components 10 | . 10 . . Parts Scanalyzed . | . . . . Part Schematics Acquired . | . . . . Parts Damaged . | . . . . Bothacking | -11 -10 -10 -8 ------------ Run | Yrd Mat Sub Mat Used RIF Installer . | . . . . Robots Hacked . | . . . . Non-combat . | . . . . Combat . | . . . . Robot Hacks Applied . | . . . . Relay Couplers Released . | . . . . Fabnet Peak Effective % . | . . . . Robots Rewired . | . . . . Allies Hacked . | . . . . Hacks Repelled . | . . . . Allies | -11 -10 -10 -8 -------- Run | Yrd Mat Sub Mat Total Allies 1 | . . . 1 Largest Group 1 | . . . 1 Highest-Rated Group 15 | . . . 15 Highest-Rated Ally 15 | . . . 15 Total Orders . | . . . . Ally Attacks 2 | . . . 2 Total Damage 47 | . . . 47 Kills . | . . . . Allies Corrupted . | . . . . Allies Melted . | . . . . Intel | -11 -10 -10 -8 ------- Run | Yrd Mat Sub Mat Robot Analysis Total 2 | . 2 . . Derelict Logs Recovered 2 | . . 2 . Drone Launches . | . . . . Drone Recoveries . | . . . . Exploration | -11 -10 -10 -8 ------------- Run | Yrd Mat Sub Mat Turns Passed 5140 | 71 2305 2496 268 Spaces Moved 3250 | 43 1365 1667 175 Core 148 | 7 138 3 . Treads 1704 | 36 1148 520 . Legs . | . . . . Wheels 1319 | . . 1144 175 Hover . | . . . . Flight 79 | . 79 . . Fastest Speed 37 | 50 37 107 110 Average Speed 133 | 147 142 127 117 Slowest Speed 500 | 160 350 500 130 Overloaded Moves . | . . . . Propulsion Burnouts . | . . . . Robots Hopped . | . . . . Cave-ins Triggered . | . . . . Exploration Rate (%) 47 | 5 99 72 15 Regions Visited 3 Branch Regions 1 Pre-discovered Areas 1 | . . 1 . Known Exits Taken . | . . . . Unknown Exits Taken 3 | 1 1 1 . Scrap Searched 5 | . . 5 . Spaces Dug 2 | . 2 . . Terrain Destroyed 8 | . 7 1 . Melee 2 | . 2 . . Projectile 6 | . 5 1 . AOE . | . . . . Terrain Rammed . | . . . . Walls Destroyed . | . . . . Machines Disabled . | . . . . Actions | -11 -10 -10 -8 --------- Run | Yrd Mat Sub Mat Total 3737 | 48 1599 1852 238 Wait 129 | . 52 51 26 Move 3247 | 42 1364 1666 175 Hop . | . . . . Pick Up 51 | . 44 5 2 Fast Attach 38 | 6 14 12 6 Attach 9 | . 1 4 4 Detach 13 | . 8 2 3 Swap 14 | . 8 5 1 Drop 50 | . 32 13 5 Fire 169 | . 72 94 3 Melee 16 | . 3 . 13 Ram 1 | . 1 . . Kick . | . . . . Crush . | . . . . Escape Stasis . | . . . . Rewire . | . . . . Trap . | . . . . Miscellaneous . | . . . . Route ------- -11/Scrapyard -10/Materials (discovered 6 exits: *Mat x3 / *Min x2 / *Sub) -10/Subcaves (discovered 2 exits: *Mat x2) -8/Materials History --------- Turn | Location | Event 23 | -11/Scrapyard | Discovered new exit (range 16) 72 | -11/Scrapyard | Entered Materials 108 | -10/Materials | Discovered new exit (range 10) 206 | -10/Materials | Discovered new exit (range 11) 306 | -10/Materials | Build established: Mutant 590 | -10/Materials | Discovered new exit (range 10) 1023 | -10/Materials | Discovered new exit (range 11) 1101 | -10/Materials | Central database locked down 1473 | -10/Materials | Identified exit to Materials 1490 | -10/Materials | Identified exit to Mines 1558 | -10/Materials | Discovered exit to Materials (range 14) 2367 | -10/Materials | Discovered new exit (range 7) 2377 | -10/Materials | Entered Subcaves 2443 | -10/Subcaves | Shifting Twisted Machinery released Unknown Ballistic Cannon 2664 | -10/Subcaves | Shifting Twisted Machinery released Sub. Laser 3118 | -10/Subcaves | Visited Clippyterm 3304 | -10/Subcaves | Core integrity fell below 50% 3347 | -10/Subcaves | Lost 3 parts (1n2w) 3603 | -10/Subcaves | Learned Materials machine intel 3883 | -10/Subcaves | Shifting Twisted Machinery released Flamer 3977 | -10/Subcaves | Shifting Twisted Machinery released Sub. Monowheel 4081 | -10/Subcaves | Core integrity fell below 20% 4192 | -10/Subcaves | Learned location of Zion (-7) 4196 | -10/Subcaves | Discovered new exit (range 14) 4272 | -10/Subcaves | Shifting Twisted Machinery released Sub. Optics 4280 | -10/Subcaves | Discovered new exit (range 8) 4322 | -10/Subcaves | Shifting Twisted Machinery released Sub. Machine Gun 4505 | -10/Subcaves | Lost 3 parts (1n2w) 4873 | -10/Subcaves | Entered Materials 4873 | -8/Materials | Evolved 4 slots: Utility x2, Weapon x2 4874 | -8/Materials | Loaded intel: 48 machine locations 5141 | -8/Materials | Self-destructed Last Messages --------------- 05058_ Dropped Unknown Storage. 05069_ K-01 Serf collects debris. 05074_ Dropped Lrg. Storage Unit. 05075_ Acquired Unknown Hackware. 05075_ Identified System Shield. 05079_ Dropped Battle Rifle. 05079_ Dropped Sub. Machine Gun. 05096_ K-01 Serf collects debris. 05097_ Acquired Hpw. Shotgun. 05098_ R-06 Scavenger collects Sub. Machine Gun. 05100_ K-01 Serf collects debris. 05101_ Acquired Battle Rifle. 05103_ R-06 Scavenger collects Mak. Light Armor Plating. 05103_ Acquired Sub. Machine Gun. 05104_ K-01 Serf collects debris. 05122_ Sneak attack on T-07 Excavator. 05122_ Splicing T-07 Excavator... 05122_ T-07 Excavator system unaffected. 05123_ T-07 Excavator sends out distress signal. 05137_ Discarded Imp. Signal Interpreter. Map ----- +----------------------------------------------------+ | ?????????????????????????????????????????????????? | | ?????????????????????????????????????????????????? | | ?????????????????????????????????????????????????? | | ""???????????????????????????????????????????????? | | ""????????????????????????????"?"????????????????? | | ""????????????????????????????"G"????????????????? | | ???????????????????????????????"?????????????????? | | ?????????????????????????????????????????????????? | | ?????????????????????????????????????????????????? | | ?????????????????????????????????????????????????? | | ?????????????????????????????????????????????????? | | ???????????????????????????????????????"?????????? | | ????######?????????????????????????????T?????????? | | ???##!!!!##????????????????????????????"?????????? | | ???#! !#??????????????????????????????????????? | | ???# #??????????????????????????????????????? | | ???### ###########???????????????????????????????? | | ?????# ## #???????????????????????????????? | | ?????# ## #???????????????????????????????? | | ###??# ## =!=! #???????????????????????????????? | | #### # !!] #??###########??????????????????? | | + + ! #??# #??????????????????? | | #### # #??# "T" #####??????????????? | | #??# # !#??# # ??????????????? | | #### # #??# /[! / # ??????????????? | | + # #??# /[@ # ??????????????? | | #### ######+###??# [[ [ + #??????????????? | | #??# #????# #????# # #??????????????? | | #??# #????# #????# ! # #??????????????? | | ###??# ##???# ####?###+#####+# #??????????????? | | ##### #???# #???# #???# #??????????????? | | #???# #???# #???# #?????"""??????? | | ##### ##### #???# #?????"""??????? | | ##### ^ #???# #?????"""??????? | | ############## ####### #???# #??????????????? | | """"" #???# ####### ##### #??????????????? | | ""T"" #??## ## # #??????????????? | | #### # # ######??????????? | | """ """ + T + # #??????????? | | """ """ #### # # #??????????? | | """ """ #??## ## + #????""" | | #??# # # #####???"""" | | #??# ## ############ #????????""" | | ##########??? ??# #???????????######??????????? | | ????????????????# #???????????????????????????? | | ????????????????######???????????????????????????? | | | | | | | | | +----------------------------------------------------+ Best States ------------- Heat Dissipation 31 Energy Generation 15 Energy Capacity 200 Matter Stores 300 Matter Capacity 300 Sight Range 16 Robot Scan Range 15 Terrain Scan Density 10 Armor Coverage 325 Evasion (%) 62 Targeting Accuracy 5 Recoil Reduction 2 Offensive Hacking 10 Defensive Hacking 10 Item Schematics ----------------- None Robot Schematics ------------------ None Fabricated ------------ Nothing Alien Tech Used ----------------- None Achievements -------------- Factory Defaults Challenges ------------ None Game ------ Seed RelayAerolevSubcomponent Manual? 0 Play Time 01:00:06 Cumulative 35.5 hours Start 2024.04.10 @ 20:22:33 End 2024.04.10 @ 21:45:22 Sessions 1 Manual Loads 0 Difficulty Rogue Special Mode None Game No. 40 Rogue 34 Adventurer 6 Explorer 0 Win Type - Total 0 Types 0/0/0/0/0/0/0/0/0 Lore% 18 Gallery% 36 Achievement% 29 Wizard Run 0 Options --------- Layout 0 ASCII 0 Keyboard 1 Movement Numpad Keybinds 0 Fullscreen 1 Font 18/SmallcapsGlow Map View 76x50 Zoom Use 0% Tactical HUD 1 Map Filters NONE Filters NONE Steam 1 RUN: 4837f100-fe3c-4bd4-bf3c-9a1869238fd9